bitfinex/quotes_ETHUSD_20250518
["timestamp","ask_amount","ask_price","bid_price","bid_amount"]
[1747547150365,3.99957983,2500.3,2499.7,4.00045779]
[1747547150779,3.99957983,2500.3,2499.7,4.0003401]
[1747547151101,3.99957983,2500.3,2499.8,4.00028234]
[1747547152070,12.77383747,2500.4,2499.8,4.00028234]
[1747547152271,1.81823971,2500.3,2499.8,4.00028234]
[1747547152808,5.81778481,2500.3,2499.8,4.00028234]
[1747547152967,8.7744,2500.4,2500.0,3.99995132]
[1747547153722,12.7737657,2500.4,2499.8,4.00021316]
[1747547154608,12.7737657,2500.4,2499.9,4.00013563]
[1747547156407,8.7744,2500.4,2500.0,3.99995594]
[1747547157190,1.1394,2500.4,2500.0,3.99995594]
[1747547157591,1.1394,2500.4,2499.6,14.06]
[1747547157592,5.13879688,2500.4,2499.9,4.00008617]
[1747547157790,7.57818252,2500.4,2499.9,4.00008617]
[1747547159610,3.57878564,2500.4,2499.9,4.00008617]
[1747547160089,7.57827186,2500.4,2499.8,4.00026388]
[1747547160389,7.57827186,2500.4,2499.9,4.00015431]
[1747547162108,3.57878564,2500.4,2499.6,6.06]
[1747547162311,1.12067856,2500.3,2499.6,6.06]
[1747547162516,5.12030432,2500.3,2499.7,4.00035806]
[1747547162806,1.12067856,2500.3,2499.7,4.00048005]
[1747547162987,1.1394,2500.4,2499.9,4.00006707]
[1747547163380,5.13876565,2500.4,2499.9,4.00006707]
[1747547164009,1.1394,2500.4,2500.0,3.99997685]
[1747547165319,11.62722016,2500.5,2499.9,1.143]
[1747547165511,15.64394652,2500.5,2499.9,1.143]
[1747547165814,15.64394652,2500.5,2500.0,3.99997976]
[1747547166021,15.64394652,2500.5,2499.9,5.1430946]
[1747547166505,4.01672636,2500.5,2500.0,4.0]
[1747547166720,1.1018,2500.6,2500.1,3.9996943]
[1747547167014,5.10084182,2500.6,2500.1,3.9996943]
[1747547167214,1.1018,2500.6,2500.2,3.99955751]
[1747547167415,3.87512225,2500.6,2500.1,3.99977171]
[1747547167629,7.87416326,2500.6,2500.1,3.99977171]
[1747547167784,4.18263405,2500.6,2499.7,6.06]
[1747547167982,4.18263405,2500.6,2499.7,10.06040631]
[1747547167983,1.1079,2500.3,2499.7,10.06040631]
[1747547168520,5.10752543,2500.3,2499.7,10.06040631]
[1747547168720,5.10752543,2500.3,2499.8,4.3791406]
[1747547168721,1.1079,2500.3,2499.8,4.3791406]
[1747547169019,1.1079,2500.3,2499.9,4.00015617]
[1747547169738,5.10742999,2500.3,2499.8,4.37906568]
[1747547169905,1.1901,2501.1,2499.9,16.8293]
[1747547170091,5.18891464,2500.8,2500.2,3.99959492]
[1747547170487,1.1901,2500.8,2500.0,7.67]
[1747547170688,1.1901,2500.8,2500.3,3.99949973]
[1747547170925,1.1901,2500.8,2500.1,4.47401215]
[1747547170926,5.18882699,2500.8,2500.2,3.99963727]
[1747547171181,5.18882699,2500.8,2500.1,0.47417215]
[1747547171182,6.24849729,2500.8,2500.3,3.99950857]
[1747547171585,2.2497703,2500.8,2500.3,3.99950857]
[1747547171830,1.1901,2500.8,2500.2,3.99954074]
[1747547172119,1.1901,2500.8,2500.3,0.37882383]
[1747547172284,12.81687398,2500.8,2500.3,4.37832022]
[1747547172735,5.08815633,2500.6,2500.3,0.37882383]
[1747547173032,1.0891,2500.5,2500.3,0.37882383]
[1747547173230,2.36501563,2500.5,2500.3,0.37882383]
[1747547173395,6.3642788,2500.5,2500.3,0.37882383]
[1747547173950,3.99938934,2500.4,2499.9,4.00011374]
[1747547174431,3.99938934,2500.4,2499.8,0.47417215]
[1747547174432,1.0891,2500.3,2499.8,0.47417215]
[1747547174633,1.0891,2500.1,2499.8,0.47417215]
[1747547175530,5.08895324,2500.1,2499.8,0.47417215]
[1747547175733,3.12918314,2500.1,2499.8,0.47417215]
[1747547176099,7.12909447,2500.1,2499.8,0.47417215]
[1747547176794,3.12918314,2500.1,2499.8,0.47417215]
[1747547177333,3.12918314,2500.1,2499.6,4.0005277]
[1747547177822,7.12902476,2500.1,2499.6,4.0005277]
[1747547178736,7.12902476,2500.1,2499.5,4.0007555]
[1747547178937,7.12902476,2500.1,2499.6,0.3787544]
[1747547179284,4.00006309,2500.0,2499.6,0.3787544]
[1747547179600,4.00010075,2500.0,2499.6,0.3787544]
[1747547180156,1.0963,2499.9,2499.6,0.3787544]
[1747547180362,4.0004293,2499.8,2499.6,0.3787544]
[1747547180584,4.0004293,2499.8,2499.3,0.47417215]
[1747547181078,4.00048582,2499.7,2499.3,0.47417215]
[1747547181280,4.00037359,2499.8,2499.3,4.47528423]
[1747547182056,4.00037359,2499.8,2499.4,0.37867956]
[1747547182262,5.09649973,2499.9,2499.4,4.37962674]
[1747547182425,1.0963,2499.9,2499.4,4.37962674]
[1747547183025,5.09647237,2499.9,2499.4,4.37962674]
[1747547184163,5.09647237,2499.9,2499.5,0.37867956]
[1747547184366,1.0963,2499.9,2499.5,0.37867956]
[1747547184562,1.0963,2499.9,2499.5,4.37941393]
[1747547184929,1.0963,2499.9,2499.7,4.00039336]
[1747547184930,7.672,2499.9,2499.7,4.00039336]
[1747547185242,7.672,2499.9,2499.5,0.37867956]
[1747547185466,7.672,2499.9,2499.6,4.00063194]
[1747547185764,7.672,2499.9,2499.6,0.37867956]
[1747547185935,7.672,2499.9,2499.6,4.3792115]
[1747547186978,7.672,2499.9,2499.7,4.0004648]
[1747547187477,7.672,2499.9,2499.7,4.37914436]
[1747547189101,7.672,2499.9,2499.7,4.0004648]
[1747547189436,7.672,2499.9,2499.7,4.00035894]
[1747547190475,7.672,2499.9,2499.7,4.00048005]
[1747547190963,7.672,2499.9,2499.8,0.37835111]
[1747547191645,7.672,2499.9,2499.8,4.37867113]
[1747547192155,1.0932,2500.2,2499.8,0.37835111]
[1747547192328,1.0932,2500.2,2499.9,4.00007344]
[1747547193570,7.672,2500.3,2499.9,4.00007344]
[1747547194086,7.672,2500.3,2500.1,3.9997228]
[1747547194783,7.672,2500.3,2499.9,4.00016]
[1747547195083,7.672,2500.3,2500.0,0.37833215]
[1747547196770,7.672,2500.3,2499.8,1.2019]
[1747547196947,8.7599,2500.7,2500.4,3.9992918]
[1747547197148,8.7599,2500.7,2500.2,1.2019]
[1747547197353,8.7599,2500.7,2500.4,3.99933332]
[1747547197653,8.7599,2500.7,2500.3,3.99945492]
[1747547198054,8.7599,2500.7,2500.4,3.9992787]
[1747547198378,8.7599,2500.7,2500.3,11.99946708]
[1747547198873,10.1692118,2500.7,2500.0,8.0]
[1747547199084,14.16819825,2500.7,2500.0,11.99998602]
[1747547199300,3.9991734,2500.6,2500.4,0.37799416]
[1747547199576,7.25531056,2500.6,2500.4,0.37799416]
[1747547200379,5.09050015,2500.5,2500.4,0.37799416]
[1747547200579,5.09050015,2500.5,2500.1,0.47417215]
[1747547200944,3.99946891,2500.4,2500.1,0.47417215]
[1747547202378,3.99946891,2500.4,2499.9,4.00014814]
[1747547202672,2.5006118,2500.5,2499.8,8.0]
[1747547202673,5.0905799,2500.5,2500.0,3.99998816]
[1747547203362,7.628,2500.4,2500.1,4.37818189]
[1747547204389,7.628,2500.4,2500.1,0.3784009]
[1747547204893,1.0913,2500.5,2500.2,3.99963892]
[1747547205078,1.0913,2500.5,2500.1,5.16437518]
[1747547205393,1.0913,2500.5,2500.1,3.99977518]
[1747547207294,1.0913,2500.5,2500.1,4.62669812]
[1747547207503,11.66993601,2500.7,2500.0,3.99999146]
[1747547207504,16.4494,2500.7,2500.2,3.99961119]
[1747547207709,20.44830484,2500.7,2500.2,3.99961119]
[1747547208001,16.4494,2500.7,2500.1,3.9997673]
[1747547208377,20.44837602,2500.7,2500.1,3.9997673]
[1747547208600,8.8224,2500.7,2500.1,3.9997673]
[1747547208777,8.8224,2500.7,2500.2,3.99968002]
[1747547209099,8.8224,2500.7,2500.3,0.37817801]
[1747547209273,8.8224,2500.7,2500.3,4.37762921]
[1747547210262,12.8212889,2500.7,2500.3,0.37817801]
[1747547211290,8.8224,2500.7,2500.3,4.37769232]
[1747547211674,8.8224,2500.7,2500.3,3.99951431]
[1747547213202,8.8224,2500.7,2500.4,0.37824811]
[1747547213798,12.8212878,2500.7,2500.4,0.37824811]
[1747547214506,8.8224,2500.7,2500.4,0.37824811]
[1747547214870,12.82137718,2500.7,2500.4,0.37824811]
[1747547215406,12.82137718,2500.7,2500.2,3.99965395]
[1747547216004,8.8224,2500.7,2500.2,3.99965395]
[1747547216508,12.82129771,2500.7,2500.2,3.99965395]
[1747547216706,3.99904405,2500.6,2500.1,3.99974441]
[1747547216876,8.8224,2500.7,2500.3,0.37843119]
[1747547217207,12.82132302,2500.7,2500.3,0.37843119]
[1747547218186,12.82132302,2500.7,2500.2,3.99967798]
[1747547220187,8.8224,2500.7,2500.2,3.99967798]
[1747547220413,8.8224,2500.7,2500.0,8.0]
[1747547220589,8.8224,2500.7,2500.3,3.99938772]
[1747547220788,8.8224,2500.7,2500.3,4.37799313]
[1747547221108,8.8224,2500.7,2500.4,3.99935587]
[1747547221309,7.671,2500.7,2500.5,3.99910102]
[1747547222982,7.671,2500.7,2500.4,3.9992788]
[1747547225018,7.671,2500.7,2500.5,0.37891832]
[1747547225795,7.671,2500.7,2500.5,4.37810691]
[1747547226829,7.671,2500.7,2500.6,0.37891832]
[1747547230045,7.671,2500.7,2500.3,3.99948558]
[1747547231312,7.671,2500.7,2500.4,0.37896225]
[1747547233432,7.671,2500.7,2500.5,0.37896225]
[1747547234143,11.66989013,2500.7,2500.5,0.37896225]
[1747547234353,3.99904023,2500.6,2500.5,0.37896225]
[1747547234644,11.66991188,2500.7,2500.5,0.37896225]
[1747547235145,11.66991188,2500.7,2500.3,0.37896225]
[1747547235719,5.1198246,2500.6,2500.3,0.37896225]
[1747547236655,1.1207,2500.6,2500.3,0.37896225]
[1747547236952,1.1207,2500.6,2500.4,0.37896225]
[1747547237552,3.99920015,2500.5,2500.4,0.37896225]
[1747547237759,12.74390015,2500.5,2500.2,0.37896225]
[1747547237930,3.99939198,2500.4,2500.2,0.37896225]
[1747547238614,3.99952005,2500.3,2500.2,0.37896225]
[1747547238814,3.99940546,2500.4,2500.2,0.37896225]
[1747547239042,16.91787843,2500.5,2500.2,0.37896225]
[1747547239213,2.091695,2500.4,2500.2,0.37896225]
[1747547239412,14.15326895,2500.5,2500.2,0.37896225]
[1747547239756,3.99937863,2500.4,2500.0,0.37896225]
[1747547240056,7.624,2500.3,2500.0,0.37896225]
[1747547240245,7.626,2500.2,2500.0,0.37896225]
[1747547240755,7.626,2500.2,2500.0,4.37895972]
[1747547241559,7.626,2500.2,2500.1,0.37896225]
[1747547244456,7.626,2500.2,2500.1,4.37880225]
[1747547244983,3.99904854,2500.6,2500.1,4.37880225]
[1747547244984,1.1624,2500.7,2500.3,3.99947324]
[1747547245127,15.248,2500.8,2500.4,3.9993601]
[1747547245640,7.624,2500.8,2500.4,3.9993601]
[1747547245859,15.248,2500.8,2500.5,0.37896225]
[1747547247847,1.1624,2500.9,2500.6,3.99894008]
[1747547248026,7.625,2500.8,2500.6,3.99894008]
[1747547248481,7.624,2500.9,2500.6,3.99894008]
[1747547250069,7.624,2500.9,2500.5,3.99912585]
[1747547250750,7.624,2500.9,2500.6,0.37864308]
[1747547252475,7.624,2500.9,2500.5,3.99912585]
[1747547253879,7.624,2500.9,2500.4,1.1678]
[1747547253880,11.62260642,2500.9,2500.4,5.16710054]
[1747547255741,11.62260642,2500.9,2500.5,0.37873295]
[1747547255938,15.246,2500.9,2500.5,0.37873295]
[1747547256576,15.246,2500.9,2500.5,4.37785994]
[1747547257370,15.246,2500.9,2500.6,0.37873295]
[1747547258499,7.624,2500.9,2500.6,0.37873295]
[1747547259338,7.624,2500.9,2500.7,0.37873295]
[1747547260647,7.624,2500.9,2500.4,5.46738925]
[1747547260853,7.624,2500.9,2500.5,3.99911494]
[1747547261344,7.624,2500.9,2500.6,3.99903321]
[1747547262375,7.624,2500.9,2500.7,3.9988169]
[1747547262576,1.1879,2501.1,2500.4,13.46739344]
[1747547262780,16.4329,2501.1,2500.8,3.99856557]
[1747547262934,16.4329,2501.1,2500.6,3.99900881]
[1747547263146,16.4329,2501.1,2500.7,3.99879677]
[1747547263345,16.4329,2501.1,2500.6,3.99896562]
[1747547263550,16.4329,2501.1,2500.8,0.378738]
[1747547263783,8.8119,2501.1,2500.8,0.378738]
[1747547265482,8.8119,2501.1,2500.7,3.99885259]
[1747547265692,7.624,2501.1,2500.9,3.99848208]
[1747547267178,7.624,2501.1,2500.8,3.99859751]
[1747547267383,7.624,2501.1,2501.0,4.37693864]
[1747547268191,7.624,2501.1,2501.0,0.37853801]
[1747547268489,7.624,2501.1,2501.0,4.37693864]
[1747547268690,7.624,2501.1,2501.0,0.37853801]
[1747547268990,7.624,2501.1,2501.0,4.37693864]
[1747547269407,14.393,2501.4,2501.0,4.37693864]
[1747547269595,15.242,2501.3,2501.0,4.37693864]
[1747547269989,14.393,2501.4,2501.0,4.37693864]
[1747547270307,7.623,2501.3,2501.0,4.37693864]
[1747547270999,7.623,2501.3,2501.1,0.37853801]
[1747547272105,7.623,2501.3,2501.0,3.99840063]
[1747547274187,14.393,2501.4,2501.0,3.99840063]
[1747547274500,22.011,2501.4,2501.0,3.99840063]
[1747547275506,22.011,2501.4,2501.1,0.37868597]
[1747547276999,14.393,2501.4,2501.1,0.37868597]
[1747547277204,29.628,2501.4,2501.2,0.37868597]
[1747547278003,14.393,2501.4,2501.2,0.37868597]
[1747547278300,1.4093118,2501.8,2501.2,0.37868597]
[1747547278301,1.1629,2502.0,2501.3,1.1288]
[1747547278506,7.618,2501.9,2501.3,1.1288]
[1747547278816,7.618,2501.9,2501.5,3.99750674]
[1747547279108,7.618,2501.9,2501.3,1.1288]
[1747547279264,7.618,2501.9,2501.5,8.0]
[1747547279467,7.618,2501.9,2501.5,11.99755036]
[1747547280073,7.618,2501.9,2501.6,0.37868597]
[1747547280694,3.99670495,2502.1,2501.7,1.1175]
[1747547280873,11.61470495,2502.1,2501.7,1.1175]
[1747547281073,7.618,2502.1,2501.7,1.1175]
[1747547281300,7.618,2502.1,2501.7,5.11462594]
[1747547281607,7.618,2502.1,2501.8,3.9970459]
[1747547282103,22.006,2502.2,2501.7,1.1175]
[1747547282104,14.39,2502.2,2501.9,3.99683238]
[1747547282507,14.39,2502.2,2501.9,3.99692398]
[1747547282903,14.39,2502.2,2502.0,1.087]
[1747547283208,7.617,2502.4,2502.0,5.08374779]
[1747547283384,11.61300399,2502.5,2502.0,1.087]
[1747547283580,7.617,2502.5,2502.0,1.087]
[1747547283798,11.61313209,2502.5,2502.0,1.087]
[1747547284185,7.617,2502.5,2501.7,1.087]
[1747547284372,7.617,2502.5,2501.9,8.0]
[1747547284577,19.22810378,2502.5,2501.9,11.99685995]
[1747547285112,3.99610378,2502.5,2501.9,11.99685995]
[1747547285287,11.61210378,2502.5,2501.9,11.99685995]
[1747547285483,7.616,2502.5,2501.9,11.99685995]
[1747547285695,11.61200538,2502.5,2502.0,5.12363227]
[1747547285901,11.61200538,2502.5,2502.0,5.08366835]
[1747547286095,7.616,2502.5,2502.1,3.99663688]
[1747547286821,7.616,2502.5,2502.0,5.083708]
[1747547287021,7.616,2502.5,2502.1,3.99660563]
[1747547287223,7.616,2502.5,2502.1,0.03996263]
[1747547287389,7.616,2502.5,2502.1,3.99651697]
[1747547288021,11.61168595,2502.7,2502.2,3.99645945]
[1747547288200,3.99543717,2502.9,2502.4,1.087]
[1747547288397,15.5338,2503.0,2502.5,3.99588169]
[1747547288600,15.5338,2503.0,2502.5,3.99591214]
[1747547288601,19.5290212,2503.0,2502.5,3.99591214]
[1747547288912,19.5290212,2503.0,2502.4,5.08310227]
[1747547289100,15.5338,2503.0,2502.5,8.0]
[1747547289483,15.5338,2503.0,2502.6,3.99583955]
[1747547289689,3.99539384,2502.9,2502.4,13.08308397]
[1747547290006,15.5338,2503.0,2502.4,9.087]
[1747547290187,15.5338,2503.0,2502.5,8.0]
[1747547290719,15.5338,2503.0,2502.4,1.087]
[1747547291025,19.52900926,2503.0,2502.5,3.99590054]
[1747547291520,15.5338,2503.0,2502.4,13.08308602]
[1747547291829,14.389,2503.0,2502.6,3.99583103]
[1747547292184,5.13934113,2503.5,2502.9,3.9952344]
[1747547292386,1.1448,2503.5,2502.8,8.0]
[1747547292619,7.615,2503.6,2503.0,3.99511997]
[1747547292792,7.615,2503.6,2502.9,1.1568]
[1747547292793,7.615,2503.6,2503.1,3.9949591]
[1747547292996,7.615,2503.6,2503.0,3.99515532]
[1747547293288,1.0853,2503.7,2503.2,3.99475004]
[1747547293808,3.99433182,2503.6,2503.1,8.0]
[1747547294323,5.07942523,2503.7,2503.1,11.99495012]
[1747547294528,5.07942523,2503.7,2503.1,12.2964051]
[1747547294819,3.99437654,2503.6,2503.1,8.30145498]
[1747547295121,3.9943453,2503.6,2503.1,8.30145498]
[1747547295426,5.07948816,2503.7,2503.1,12.29643185]
[1747547295589,3.99452301,2503.5,2503.1,8.0]
[1747547296220,1.0853,2503.5,2503.0,6.06]
[1747547296422,3.99486685,2503.3,2503.0,6.06]
[1747547296619,3.99461962,2503.4,2503.0,6.06]
[1747547296819,3.9947527,2503.3,2502.9,8.0]
[1747547297326,3.9947527,2503.3,2502.8,8.0]
[1747547297706,3.99490877,2503.2,2502.7,5.15248365]
[1747547298033,3.99478687,2503.3,2502.7,5.15248365]
[1747547298336,3.99512231,2503.1,2502.7,1.45310524]
[1747547298508,5.10459572,2503.2,2502.7,1.45310524]
[1747547298890,1.1097,2503.2,2502.7,1.45310524]
[1747547299109,1.1097,2503.2,2502.7,5.44873492]
[1747547299297,1.1097,2503.2,2502.8,3.99552501]
[1747547299496,7.613,2503.3,2503.0,3.99519015]
[1747547299791,1.1097,2503.4,2503.0,3.99519015]
[1747547299985,7.613,2503.5,2503.0,3.99519015]
[1747547300189,7.613,2503.5,2503.1,3.99494611]
[1747547300385,7.613,2503.5,2502.9,1.1871]
[1747547300638,7.613,2503.5,2502.7,4.8419238]
[1747547300639,7.613,2503.5,2503.3,5.1818254]
[1747547300790,3.99418137,2503.7,2503.3,1.1871]
[1747547300996,21.997,2503.9,2503.3,1.81402294]
[1747547301326,25.9907997,2503.9,2503.3,5.18174613]
[1747547301834,14.384,2503.9,2503.6,3.99424585]
[1747547302129,14.384,2503.9,2503.5,3.99438379]
[1747547302332,7.613,2504.0,2503.5,3.99438379]
[1747547302503,7.613,2504.0,2503.6,3.994235]
[1747547302697,7.613,2504.0,2503.5,3.99440782]
[1747547302896,7.613,2504.0,2503.6,3.99423809]
[1747547303950,7.613,2504.0,2503.7,5.07921555]
[1747547304293,7.607,2504.3,2503.8,3.9938343]
[1747547304916,3.99275924,2504.6,2504.0,3.99358484]
[1747547305120,19.51645047,2504.7,2504.1,3.99333875]
[1747547305533,3.99265852,2504.6,2504.1,3.99333875]
[1747547305733,8.7508,2504.9,2504.1,3.99345074]
[1747547305939,3.99234426,2504.8,2504.2,3.99322833]
[1747547306137,3.99260156,2504.7,2504.0,9.0852]
[1747547306350,8.7508,2504.9,2504.1,0.55]
[1747547306632,8.7508,2504.9,2504.5,3.99279587]
[1747547306842,7.607,2504.9,2504.3,0.55]
[1747547307046,3.99245046,2504.8,2504.2,5.07837927]
[1747547307197,7.607,2504.9,2504.2,5.07843532]
[1747547307555,1.1438,2504.8,2504.2,13.07846746]
[1747547307699,5.13620574,2504.8,2504.2,1.0852]
[1747547307900,1.1438,2504.8,2504.4,8.0]
[1747547308208,5.1362092,2504.8,2504.2,5.07842098]
[1747547308635,3.99285311,2504.5,2504.0,9.0852]
[1747547308823,1.1438,2504.8,2504.0,13.07880074]
[1747547309026,3.99275211,2504.6,2504.0,13.07880074]
[1747547309229,3.99255329,2504.7,2504.2,8.0]
[1747547309436,7.605,2504.9,2504.4,3.99296492]
[1747547309606,7.605,2504.9,2504.4,9.0852]
[1747547309945,3.99235927,2504.8,2504.4,1.0852]
[1747547310102,11.59724221,2504.9,2504.4,1.0852]
[1747547310617,11.59729541,2504.9,2504.4,1.0852]
[1747547311648,3.99235699,2504.8,2504.4,1.0852]
[1747547311826,11.59726091,2504.9,2504.3,8.0]
[1747547312141,3.9924522,2504.8,2504.3,8.0]
[1747547312846,3.99233748,2504.8,2504.3,8.0]
[1747547313417,3.9925817,2504.7,2504.2,1.0852]
[1747547315041,11.59719038,2504.9,2504.3,3.99304157]
[1747547315542,15.207,2504.9,2504.3,11.99308276]
[1747547315839,3.99235639,2504.8,2504.3,8.0]
[1747547316044,3.99235639,2504.8,2504.2,5.07841399]
[1747547316226,19.19923645,2504.9,2504.3,3.99312771]
[1747547316534,3.99223645,2504.9,2504.2,1.0852]
[1747547316735,19.19723645,2504.9,2504.3,3.9930762]
[1747547317113,19.19723645,2504.9,2504.2,5.07842944]
[1747547317318,19.19723645,2504.9,2504.3,3.9930363]
[1747547317319,15.205,2504.9,2504.3,3.9930363]
[1747547317619,7.603,2504.9,2504.5,8.0]
[1747547318328,11.59519057,2504.9,2504.3,3.99305185]
[1747547319309,11.59519057,2504.9,2504.4,0.37521947]
[1747547319669,11.59519057,2504.9,2504.5,8.0]
[1747547319670,7.603,2504.9,2504.5,8.0]
[1747547320154,7.603,2504.9,2504.4,0.37521947]
[1747547320660,7.603,2504.9,2504.5,8.0]
[1747547320959,12.73793714,2505.0,2504.5,11.99278951]
[1747547320960,1.1438,2505.0,2504.5,11.99278951]
[1747547321107,7.602,2505.0,2504.6,5.07556822]
[1747547321311,7.602,2505.1,2504.6,5.07556822]
[1747547322238,7.602,2505.1,2504.6,1.083]
[1747547322650,7.502,2505.1,2504.6,5.07556072]
[1747547322850,11.49389614,2505.1,2504.6,1.083]
[1747547323241,7.502,2505.1,2504.6,1.083]
[1747547323459,7.502,2505.1,2504.6,5.07556803]
[1747547324025,7.502,2505.1,2504.7,3.99249362]
[1747547324253,7.502,2505.1,2504.6,1.083]
[1747547324555,7.502,2505.1,2504.8,3.99233471]
[1747547324753,7.502,2505.1,2504.6,1.083]
[1747547325356,7.502,2505.1,2504.7,0.37549925]
[1747547326169,7.502,2505.1,2504.7,4.36798804]
[1747547326327,7.502,2505.1,2504.7,4.36798618]
[1747547326524,7.502,2505.1,2504.6,5.07559428]
[1747547327761,1.1518,2505.2,2504.7,3.99249411]
[1747547328056,11.59364378,2505.3,2504.6,5.07560088]
[1747547328220,7.602,2505.3,2504.7,3.9924848]
[1747547328427,3.99184612,2505.2,2504.6,1.083]
[1747547328621,3.99184612,2505.2,2504.6,5.07564485]
[1747547329554,3.99184612,2505.2,2504.6,1.083]
[1747547330137,11.59360633,2505.3,2504.6,5.07562124]
[1747547330338,11.59360633,2505.3,2504.7,0.3764523]
[1747547330540,3.99173672,2505.2,2504.7,0.3764523]
[1747547331230,11.5935535,2505.3,2504.7,0.3764523]
[1747547331435,1.1512,2505.1,2504.7,0.3764523]
[1747547331658,5.14310253,2505.1,2504.7,0.3764523]
[1747547331856,3.9921031,2505.0,2504.8,0.3764523]
[1747547332561,5.14312933,2505.1,2504.8,0.3764523]
[1747547332749,3.99210286,2505.0,2504.8,0.3764523]
[1747547333061,3.99217533,2504.9,2504.8,0.3764523]
[1747547333265,5.14369411,2504.7,2504.6,0.3764523]
[1747547335245,3.99265351,2504.6,2503.9,0.47417215]
[1747547335445,3.99313361,2504.3,2503.9,0.47417215]
[1747547335852,3.99303976,2504.4,2503.9,0.47417215]
[1747547336431,1.1512,2504.8,2504.2,3.99326445]
[1747547336630,1.1512,2504.8,2504.1,1.1953]
[1747547336631,11.59050023,2504.7,2504.1,1.1953]
[1747547336832,1.1512,2504.8,2504.4,8.0]
[1747547337061,7.598,2504.8,2504.2,3.99314088]
[1747547337229,7.598,2504.8,2504.4,3.99295272]
[1747547337429,1.1512,2505.1,2504.2,0.55]
[1747547337633,3.99223089,2504.9,2504.5,0.37779063]
[1747547338160,3.99236979,2504.8,2504.5,0.37779063]
[1747547338564,1.1512,2504.6,2504.5,0.37779063]
[1747547338779,5.14385686,2504.6,2504.3,8.47417215]
[1747547338945,1.1512,2504.6,2504.3,8.47417215]
[1747547339148,1.1512,2504.6,2504.3,0.47417215]
[1747547339350,3.99294232,2504.5,2504.3,0.47417215]
[1747547339546,3.99292998,2504.5,2504.3,0.47417215]
[1747547339750,3.99292998,2504.5,2504.2,6.06]
[1747547339947,5.14392223,2504.6,2504.2,6.06]
[1747547340150,3.99199491,2505.1,2504.2,6.06]
[1747547340151,5.14258194,2505.4,2504.5,0.55]
[1747547340348,1.1512,2505.4,2504.8,3.99221841]
[1747547340573,1.1512,2505.4,2504.9,9.1953]
[1747547340884,1.1512,2505.4,2505.0,0.37713368]
[1747547341036,30.5349138,2505.5,2505.0,0.37713368]
[1747547341371,34.52626071,2505.5,2505.0,0.37713368]
[1747547341554,34.52618527,2505.5,2505.0,0.37713368]
[1747547341872,3.99138508,2505.4,2505.0,0.37713368]
[1747547342236,20.14920761,2505.5,2505.0,0.37713368]
[1747547342441,3.99140727,2505.4,2505.1,0.37713368]
[1747547343276,20.14918678,2505.5,2505.1,0.37713368]
[1747547343677,20.14918678,2505.5,2504.9,5.1874648]
[1747547343974,3.99151039,2505.4,2504.9,1.1953]
[1747547344174,3.99151039,2505.4,2504.8,12.76005455]
[1747547344175,3.99172592,2505.2,2504.8,0.47417215]
[1747547344382,1.1594,2505.2,2504.8,0.47417215]
[1747547344872,1.1594,2505.2,2504.9,0.37691324]
[1747547345072,3.99199313,2505.1,2504.9,0.37691324]
[1747547345377,5.15117364,2505.2,2504.9,0.37691324]
[1747547345538,7.597,2505.1,2504.9,0.37691324]
[1747547345734,16.3524,2505.2,2504.9,0.37691324]
[1747547345971,15.193,2505.2,2504.9,0.37691324]
[1747547346172,7.597,2505.2,2504.9,3.99215631]
[1747547346463,11.58862343,2505.3,2504.7,4.46660729]
[1747547346768,11.58861158,2505.3,2504.9,8.0]
[1747547347173,11.58861158,2505.3,2504.8,8.0]
[1747547348078,11.58861158,2505.3,2505.0,0.37680896]
[1747547349678,1.1594,2505.4,2505.0,0.37680896]
[1747547349974,1.1594,2505.4,2505.1,0.37680896]
[1747547350278,7.597,2505.4,2505.1,0.37680896]
[1747547350777,3.99154422,2505.3,2505.1,0.37680896]
[1747547350967,3.94154422,2505.3,2505.1,0.37680896]
[1747547351359,3.99159527,2505.3,2505.1,0.37680896]
[1747547351865,3.99169726,2505.2,2505.1,0.37680896]
[1747547352073,3.99169726,2505.2,2504.8,9.1961]
[1747547352259,3.99169726,2505.2,2504.8,8.0]
[1747547352952,5.08537963,2505.3,2504.8,8.0]
[1747547353367,3.99178544,2505.2,2504.8,8.0]
[1747547353573,5.08542675,2505.3,2504.8,8.0]
[1747547353776,5.08542675,2505.3,2504.9,0.37667771]
[1747547353984,3.99171779,2505.2,2504.9,0.37667771]
[1747547354183,5.08540547,2505.3,2504.9,0.37667771]
[1747547355091,3.99187187,2505.1,2505.0,0.37667771]
[1747547356195,3.99187187,2505.1,2504.7,0.37667771]
[1747547357392,3.99217764,2504.9,2504.7,0.37667771]
[1747547357684,7.597,2504.8,2504.7,0.37667771]
[1747547357858,8.6747,2505.0,2504.7,0.37667771]
[1747547358048,8.6767,2505.0,2504.7,0.37667771]
[1747547358254,12.66872774,2505.0,2504.7,0.37667771]
[1747547358588,8.6767,2505.0,2504.7,0.37667771]
[1747547359078,12.66875881,2505.0,2504.7,0.37667771]
[1747547359279,3.99217574,2504.9,2504.7,0.37667771]
[1747547359457,12.66876501,2505.0,2504.7,0.37667771]
[1747547359660,8.6767,2505.0,2504.7,0.37667771]
[1747547359865,3.99219494,2504.9,2504.5,0.37667771]
[1747547360064,14.367,2505.3,2504.5,0.37667771]
[1747547360267,20.31889038,2505.2,2504.6,5.13305351]
[1747547361066,20.31889038,2505.2,2504.7,0.37667771]
[1747547361067,20.31888215,2505.2,2504.7,0.37667771]
[1747547361386,20.31882888,2505.2,2504.7,4.36912535]
[1747547361613,20.31880773,2505.2,2504.7,4.36908835]
[1747547361832,5.12680773,2505.2,2504.7,4.36908835]
[1747547362031,7.597,2505.1,2504.7,4.36908835]
[1747547362815,7.597,2505.1,2504.8,0.37667771]
[1747547363983,14.367,2505.3,2505.0,3.99198806]
[1747547363984,7.595,2505.3,2505.0,3.99198806]
[1747547364517,7.595,2505.3,2505.0,3.99199179]
[1747547366098,7.595,2505.3,2504.9,5.11611356]
[1747547366469,7.595,2505.3,2505.0,0.37667771]
[1747547367195,7.595,2505.3,2505.0,4.36864897]
[1747547367399,8.5599138,2505.5,2505.1,5.11578088]
[1747547367767,13.64490303,2505.5,2505.1,1.124]
[1747547368167,13.64490303,2505.5,2505.2,0.27667771]